bitfinex/quotes_SOLUSD_20220113
["timestamp","ask_amount","ask_price","bid_price","bid_amount"]
[1642066634515,2.633,151.89,151.83,1.87208745]
[1642066634713,25.5981,151.89,151.83,1.87208745]
[1642066634914,25.8481,151.89,151.82,1.87208745]
[1642066635717,101.6283,151.89,151.82,1.87208745]
[1642066637118,101.6283,151.89,151.81,1.87208745]
[1642066637719,0.07,151.87,151.81,1.87208745]
[1642066637917,2.634,151.86,151.81,1.87208745]
[1642066638117,0.07,151.85,151.79,26.53578745]
[1642066638321,2.634,151.84,151.79,26.53578745]
[1642066638520,2.884,151.84,151.79,1.87208745]
[1642066639020,2.884,151.84,151.77,39.59739075]
[1642066639222,27.1587,151.84,151.77,39.59739075]
[1642066639822,27.1587,151.84,151.77,37.7253033]
[1642066640524,27.1587,151.84,151.76,25.55978745]
[1642066640725,27.1587,151.84,151.76,1.87208745]
[1642066641525,27.1587,151.84,151.75,26.25188745]
[1642066642830,2.634,151.84,151.76,9.8813]
[1642066643026,82.359,151.87,151.76,22.0153]
[1642066643027,27.099,151.86,151.76,22.0153]
[1642066644729,27.349,151.86,151.76,22.0153]
[1642066647260,2.634,151.86,151.76,22.0153]
[1642066647558,2.634,151.91,151.76,32.71979863]
[1642066647758,2.634,151.91,151.77,23.7862]
[1642066647962,0.07,151.9,151.82,9.8774]
[1642066648161,2.634,151.89,151.82,40.70712116]
[1642066648358,25.3605,151.89,151.82,40.70712116]
[1642066648558,25.6105,151.89,151.82,40.70712116]
[1642066648960,25.6105,151.89,151.82,9.8774]
[1642066649859,25.3605,151.89,151.82,9.8774]
[1642066651259,25.6105,151.89,151.82,9.8774]
[1642066651463,25.6805,151.89,151.8,9.8785]
[1642066651661,25.6105,151.89,151.8,9.8785]
[1642066652862,22.9765,151.89,151.8,12.5125]
[1642066653064,0.25,151.89,151.8,12.5125]
[1642066653262,0.25,151.89,151.81,9.5]
[1642066653462,31.06686255,151.9,151.83,9.8767]
[1642066653662,0.25,151.9,151.83,9.8767]
[1642066654063,26.2241,151.91,151.83,9.8767]
[1642066654664,29.80124525,151.9,151.83,9.8767]
[1642066655065,30.05124525,151.9,151.83,9.8767]
[1642066656271,2.633,151.94,151.84,9.5]
[1642066656471,2.633,151.96,151.9,9.8722]
[1642066656672,1.75121379,151.97,151.9,9.8722]
[1642066657274,30.91049369,151.97,151.9,9.8722]
[1642066657671,2.632,151.96,151.9,9.8722]
[1642066657871,29.1592799,151.97,151.9,9.8722]
[1642066659472,29.4092799,151.97,151.9,9.8722]
[1642066661377,29.4092799,151.97,151.89,2.632]
[1642066662778,29.4092799,151.97,151.88,12.132]
[1642066663181,29.4092799,151.97,151.89,9.873]
[1642066665083,0.25,151.97,151.89,9.873]
[1642066665482,26.7941,151.98,151.89,9.873]
[1642066665913,30.76420558,151.97,151.89,9.873]
[1642066666111,31.01420558,151.97,151.89,9.873]
[1642066668416,2.632,151.96,151.88,9.5]
[1642066668915,2.882,151.96,151.87,61.6328891]
[1642066669115,2.882,151.96,151.87,59.0008891]
[1642066669317,26.9791,151.96,151.87,59.0008891]
[1642066671524,26.9791,151.96,151.87,61.6338891]
[1642066671718,26.7291,151.96,151.87,61.6338891]
[1642066672519,26.7291,151.96,151.87,61.8838891]
[1642066672720,24.0971,151.96,151.87,61.8838891]
[1642066673120,24.3471,151.96,151.87,61.8838891]
[1642066677328,30.76420558,151.97,151.87,61.9538891]
[1642066677528,30.76420558,151.97,151.87,63.03030028]
[1642066677928,30.76420558,151.97,151.88,9.5]
[1642066678131,30.76420558,151.97,151.9,9.8723]
[1642066678630,31.01420558,151.97,151.9,9.8723]
[1642066681643,30.76420558,151.97,151.9,9.8723]
[1642066683042,31.01420558,151.97,151.9,10.1223]
[1642066683650,0.25,151.97,151.9,10.1223]
[1642066683849,24.1328,151.98,151.9,10.1223]
[1642066684048,24.1328,151.98,151.9,9.8723]
[1642066684248,24.1328,151.98,151.9,10.1223]
[1642066684672,50.62366915,151.98,151.9,10.1223]
[1642066684870,50.62366915,151.98,151.9,9.8723]
[1642066685072,2.632,151.97,151.89,22.5386]
[1642066685471,2.882,151.97,151.89,22.5386]
[1642066686272,0.25,151.97,151.89,22.5386]
[1642066686471,53.25566915,151.98,151.89,22.7886]
[1642066687073,53.25566915,151.98,151.89,22.5386]
[1642066687274,53.25566915,151.98,151.89,32.4117]
[1642066693181,53.25566915,151.98,151.89,35.0437]
[1642066694083,53.25566915,151.98,151.89,32.4117]
[1642066699188,53.00566915,151.98,151.89,32.4117]
[1642066700189,50.37366915,151.98,151.89,32.4117]
[1642066700590,50.62366915,151.98,151.89,32.4117]
[1642066701291,50.62366915,151.98,151.9,2.632]
[1642066701491,50.62366915,151.98,151.9,12.5045]
[1642066701891,24.1328,151.98,151.9,12.5045]
[1642066702294,74.81171379,151.99,151.9,12.7545]
[1642066702493,75.06171379,151.99,151.93,9.8703]
[1642066702991,75.06171379,151.99,151.94,23.50545875]
[1642066703396,24.5703,152.01,151.94,33.37525875]
[1642066703592,1.75121379,152.02,151.95,9.5]
[1642066703793,1.75121379,152.02,151.95,12.13]
[1642066703992,1.75121379,152.02,151.95,12.38]
[1642066704493,1.75121379,152.03,151.95,12.45]
[1642066704693,1.75121379,152.03,151.96,1.08070004]
[1642066704896,1.75121379,152.03,151.97,9.5]
[1642066705094,1.75121379,152.03,151.97,9.75]
[1642066705294,78.1431,152.04,151.97,9.75]
[1642066705493,26.4766175,152.07,151.98,9.8668]
[1642066705692,27.13561379,152.08,151.98,19.3668]
[1642066705892,0.25,152.07,151.98,19.6168]
[1642066706094,27.13561379,152.08,151.98,20.69750004]
[1642066706593,27.13561379,152.08,151.98,28.24050004]
[1642066706795,1.75121379,152.08,151.99,2.63]
[1642066707094,1.75121379,152.08,152.03,9.8634]
[1642066707293,32.46281508,152.11,152.03,9.8634]
[1642066707495,29.83281508,152.11,152.03,9.8634]
[1642066707893,30.08281508,152.11,152.03,9.8634]
[1642066708096,29.83281508,152.11,152.03,9.8634]
[1642066708294,1.75121379,152.11,152.03,9.8634]
[1642066708495,4.38121379,152.13,152.03,19.3634]
[1642066709296,31.86029612,152.13,152.03,19.3634]
[1642066709498,30.35908233,152.13,152.03,19.3634]
[1642066710394,96.25908233,152.13,152.03,9.5]
[1642066711197,98.01029612,152.13,152.03,9.5]
[1642066711997,107.87549612,152.13,152.03,9.5]
[1642066712197,106.12428233,152.13,152.03,9.5]
[1642066712599,30.35908233,152.13,152.03,9.5]
[1642066713400,30.35908233,152.13,152.03,19.3641]
[1642066713601,30.35908233,152.13,152.03,9.5]
[1642066714606,30.35908233,152.13,152.03,19.3641]
[1642066716004,30.10908233,152.13,152.03,19.3641]
[1642066717310,30.35908233,152.13,152.03,19.3641]
[1642066719835,0.07,152.12,152.03,19.3641]
[1642066720034,2.63,152.11,152.03,9.5]
[1642066720236,2.63,152.11,152.01,12.495]
[1642066720439,2.88,152.11,152.01,12.495]
[1642066721136,24.325,152.1,152.01,12.495]
[1642066721336,2.63,152.09,152.01,12.495]
[1642066721539,2.88,152.09,152.01,12.495]
[1642066722639,2.88,152.09,152.01,9.865]
[1642066726047,24.325,152.1,152.01,9.865]
[1642066726247,24.325,152.1,152.01,19.615]
[1642066726446,24.325,152.1,152.01,19.365]
[1642066727848,24.575,152.1,152.01,19.365]
[1642066729749,24.325,152.1,152.01,19.365]
[1642066730752,24.325,152.1,152.01,19.615]
[1642066730955,24.325,152.1,152.01,19.365]
[1642066731553,24.575,152.1,152.01,19.365]
[1642066733155,24.575,152.1,152.02,2.63]
[1642066733355,24.575,152.1,152.03,9.864]
[1642066733755,24.325,152.1,152.03,9.864]
[1642066734956,24.575,152.1,152.03,9.864]
[1642066737193,24.575,152.1,152.04,28.67674021]
[1642066737389,24.575,152.1,152.06,9.8619]
[1642066739690,24.575,152.1,152.02,2.63]
[1642066739992,24.575,152.1,152.01,9.5]
[1642066739993,2.63,152.09,152.0,1.87208745]
[1642066740190,24.4403,152.08,152.0,1.87208745]
[1642066740390,2.63,152.07,151.98,34.61208745]
[1642066740591,0.25,152.07,151.99,30.79225469]
[1642066740790,0.25,152.07,152.0,9.8657]
[1642066741790,2.00121379,152.08,152.0,11.1840927]
[1642066741991,2.00121379,152.08,152.01,2.63]
[1642066742191,0.25,152.08,152.04,9.8629]
[1642066742592,2.00121379,152.09,152.04,9.8629]
[1642066742791,0.25,152.09,152.0,27.2832]
[1642066742992,2.63,152.09,152.0,27.7932]
[1642066743192,2.63,152.09,152.02,9.8642]
[1642066743394,0.25,152.09,152.02,12.4942]
[1642066743594,1.75121379,152.1,152.02,12.4942]
[1642066743795,1.75121379,152.1,152.02,12.7542]
[1642066744494,26.4878,152.11,152.02,12.7542]
[1642066744895,26.7378,152.11,152.02,12.7542]
[1642066745294,26.7378,152.11,152.02,12.4942]
[1642066746095,1.75121379,152.1,152.02,12.4942]
[1642066746295,2.63,152.09,152.02,12.4942]
[1642066746598,2.88,152.09,152.02,9.8642]
[1642066746995,2.88,152.09,152.01,9.8653]
[1642066748196,4.63121379,152.09,152.01,9.8653]
[1642066748498,2.00121379,152.09,152.01,9.8653]
[1642066748897,2.07121379,152.09,151.99,12.4962]
[1642066749101,2.07121379,152.09,151.99,9.8662]
[1642066749102,2.63,152.08,151.99,9.8662]
[1642066749498,2.88,152.08,151.99,9.8662]
[1642066749698,54.72425809,152.07,151.99,39.29032056]
[1642066750099,23.1501,152.07,151.99,39.54032056]
[1642066750297,23.1501,152.07,151.99,39.29032056]
[1642066754399,22.9001,152.07,151.99,39.29032056]
[1642066755602,22.9001,152.07,151.99,39.54032056]
[1642066755832,23.1501,152.07,151.99,39.54032056]
[1642066756005,23.1501,152.07,151.99,39.29032056]
[1642066756605,23.1501,152.07,152.0,2.63]
[1642066756808,23.1501,152.07,152.01,9.8651]
[1642066757608,23.1501,152.07,151.98,25.4254]
[1642066757809,25.7801,152.07,151.99,9.8662]
[1642066760614,27.53131379,152.07,151.99,9.8662]
[1642066762819,25.7801,152.07,151.99,9.8662]
[1642066764247,23.1501,152.07,151.99,9.8662]
[1642066765447,23.1501,152.07,151.99,12.4962]
[1642066766548,2.63,152.06,151.99,12.4962]
[1642066766956,2.88,152.06,151.99,12.4962]
[1642066767950,2.88,152.06,151.99,9.8662]
[1642066767951,0.25,152.06,151.99,9.8662]
[1642066768354,25.7801,152.07,151.99,9.8662]
[1642066768551,23.1501,152.07,151.99,9.8662]
[1642066769651,23.1501,152.07,151.99,12.4962]
[1642066773760,23.1501,152.07,151.99,9.8662]
[1642066776665,24.90131379,152.07,151.99,9.8662]
[1642066777167,24.65131379,152.07,151.99,9.8662]
[1642066778266,22.9001,152.07,151.99,9.8662]
[1642066778466,23.1501,152.07,151.99,9.8662]
[1642066786002,24.90131379,152.07,151.99,9.8662]
[1642066786803,24.90131379,152.07,151.99,9.7662]
[1642066794018,1.75121379,152.07,152.0,96.66754934]
[1642066794220,1.75121379,152.07,152.02,75.7642]
[1642066794418,1.75121379,152.07,152.03,12.13]
[1642066794817,1.75121379,152.09,152.03,12.64]
[1642066795017,26.8265116,152.09,152.03,12.64]
[1642066795317,26.8265116,152.09,152.03,12.13]
[1642066795525,27.0765116,152.09,152.03,12.13]
[1642066795720,25.32529781,152.09,152.03,9.5]
[1642066795920,25.32529781,152.09,152.01,1.87208745]
[1642066796121,23.7814,152.08,152.01,1.87208745]
[1642066796522,24.0314,152.08,152.0,9.5]
[1642066797021,24.0314,152.08,152.01,9.8652]
[1642066797222,23.7814,152.08,152.01,9.8652]
[1642066797422,25.07529781,152.09,152.01,10.1152]
[1642066797623,25.07529781,152.09,152.02,9.5]
[1642066798025,25.07529781,152.09,152.02,9.75]
[1642066798624,25.32529781,152.09,152.02,9.75]
[1642066799325,25.32529781,152.09,152.04,9.8633]
[1642066800230,25.32529781,152.09,152.03,9.8642]
[1642066813273,25.32529781,152.09,152.01,9.8649]
[1642066813471,25.5003,152.08,152.01,9.8649]
[1642066813870,25.7503,152.08,152.0,2.63]
[1642066814273,25.8203,152.08,152.0,2.63]
[1642066814474,27.49288303,152.08,152.0,2.63]
[1642066815075,37.36168303,152.08,152.0,2.63]
[1642066816075,1.75121379,152.07,152.0,2.63]
[1642066816278,2.7,152.06,152.0,2.63]
[1642066816575,2.95,152.06,152.0,2.63]
[1642066817175,27.9348,152.06,152.0,2.63]
[1642066818978,27.9348,152.06,151.96,9.8686]
[1642066819379,27.9348,152.06,151.94,12.13]
[1642066819617,27.9348,152.06,151.94,9.5]
[1642066820410,27.9348,152.06,151.94,19.3695]
[1642066820611,27.6848,152.06,151.95,2.63]
[1642066821811,39.22728303,152.06,151.95,2.63]
[1642066822011,105.37728303,152.06,151.95,2.63]
[1642066822212,39.47728303,152.06,151.95,2.63]
[1642066822412,29.60738303,152.06,151.95,2.63]
[1642066822612,27.9348,152.06,151.95,2.63]
[1642066823815,29.60738303,152.06,151.95,2.63]
[1642066824219,27.9348,152.06,151.94,2.63]
[1642066824823,27.9348,152.06,151.95,9.8692]
[1642066827721,93.8348,152.06,151.95,9.8692]
[1642066828322,114.87728303,152.06,151.94,2.63]
[1642066828523,122.35128303,152.06,151.94,2.63]
[1642066829523,124.10249682,152.06,151.94,2.63]
[1642066829727,58.20249682,152.06,151.92,102.4]
[1642066829923,50.72849682,152.06,151.92,102.4]
[1642066830526,50.72849682,152.06,151.93,23.4471]
[1642066831324,48.97728303,152.06,151.94,9.8699]
[1642066832526,114.87728303,152.06,151.93,23.4471]
[1642066832925,48.97728303,152.06,151.93,23.4471]
[1642066833729,0.07,152.04,151.93,23.4471]
[1642066833926,26.24347188,152.02,151.93,33.3177]
[1642066834127,25.8493,152.01,151.93,33.3177]
[1642066834529,26.0993,152.01,151.93,9.8706]
[1642066834728,26.0993,152.01,151.92,102.4]
[1642066835128,26.0993,152.01,151.92,112.2713]
[1642066839462,26.0993,152.01,151.92,19.3713]
[1642066841665,26.1693,152.01,151.92,9.5]
[1642066847371,0.07,152.01,151.92,19.3712]
[1642066847570,0.07,152.01,151.93,24.1863]
[1642066847772,0.07,152.01,151.93,26.05838745]
[1642066847971,0.07,152.01,151.94,2.632]
[1642066848577,0.07,152.01,151.95,1.87208745]
[1642066849174,0.07,152.01,151.95,11.74128745]
[1642066849574,0.07,152.01,151.94,4.50408745]
[1642066849779,0.07,152.01,151.94,1.87208745]
[1642066850175,0.07,152.01,151.93,26.05838745]
[1642066850376,22.829,152.01,151.93,26.05838745]
[1642066850577,23.079,152.01,151.93,26.05838745]
[1642066851276,23.079,152.01,151.93,24.1863]
[1642066852075,23.079,152.01,151.93,26.05838745]
[1642066853877,23.079,152.01,151.93,24.1863]
[1642066854780,2.632,152.0,151.93,24.1863]
[1642066854976,0.25,152.0,151.93,24.1863]
[1642066856377,23.009,152.01,151.93,24.1863]
[1642066856678,23.009,152.01,151.92,1.87208745]
[1642066856876,2.632,152.0,151.92,1.87208745]
[1642066857076,2.882,152.0,151.92,1.87208745]
[1642066857577,2.882,152.0,151.91,25.24148745]
[1642066857777,23.68712243,151.98,151.91,25.24148745]
[1642066857978,23.93712243,151.98,151.91,25.24148745]
[1642066858278,23.93712243,151.98,151.91,35.11338745]
[1642066858980,34.51512243,151.98,151.91,1.87208745]
[1642066859179,22.9881,151.97,151.91,1.87208745]
[1642066859380,2.632,151.96,151.91,1.87208745]
[1642066859581,2.882,151.96,151.91,1.87208745]
[1642066860784,2.882,151.96,151.88,1.87208745]
[1642066861182,26.31912243,151.98,151.88,1.87208745]
[1642066861384,24.6457,151.97,151.88,1.87208745]
[1642066861583,2.632,151.96,151.88,1.87208745]
[1642066861982,2.632,151.96,151.88,11.74598745]
[1642066862581,2.882,151.96,151.88,11.74598745]
[1642066865988,2.882,151.96,151.88,1.87208745]
[1642066866588,22.9334,151.95,151.88,1.87208745]
[1642066867087,23.1834,151.95,151.88,1.87208745]
[1642066867591,23.1834,151.95,151.87,1.87208745]
[1642066867788,23.1834,151.95,151.88,9.8738]
[1642066869492,2.632,151.97,151.88,9.8738]
[1642066869691,23.8857,151.97,151.88,12.5058]
[1642066870693,23.8857,151.97,151.89,1.87208745]
[1642066870893,24.1357,151.97,151.89,1.87208745]
[1642066871894,24.1357,151.97,151.88,11.74588745]
[1642066872133,32.2187,151.97,151.88,1.87208745]
[1642066873143,2.632,151.96,151.88,1.87208745]
[1642066873538,0.25,151.96,151.88,1.87208745]
[1642066874540,26.7677,151.97,151.87,9.8746]
[1642066874838,2.633,151.95,151.87,9.8746]
[1642066875039,0.25,151.95,151.87,9.8746]
[1642066875242,22.9978,151.95,151.87,9.8746]
[1642066877871,2.633,151.94,151.87,9.8746]
[1642066878071,2.883,151.94,151.87,9.8746]
[1642066878272,2.883,151.94,151.86,36.21198745]
[1642066879472,0.25,151.94,151.86,36.21198745]
[1642066879670,0.25,151.94,151.86,46.08708745]
[1642066879871,25.6308,151.95,151.86,46.08708745]
[1642066882175,25.6308,151.95,151.86,36.21198745]
[1642066886783,25.6308,151.95,151.87,1.87208745]
[1642066888386,25.6308,151.95,151.86,26.71198745]
[1642066889286,25.6308,151.95,151.87,1.87208745]
[1642066892592,65.9,151.94,151.87,1.87208745]
[1642066892793,2.633,151.93,151.87,1.87208745]
[1642066892992,25.542,151.93,151.87,1.87208745]
[1642066893197,30.76524693,151.92,151.85,1.87208745]
[1642066893396,2.633,151.91,151.85,1.87208745]
[1642066893593,0.25,151.91,151.85,1.87208745]
[1642066894693,31.01524693,151.92,151.85,1.87208745]
[1642066896499,31.01524693,151.92,151.84,36.16008745]
[1642066896699,2.633,151.91,151.84,36.16008745]
[1642066896901,2.633,151.91,151.84,26.66008745]
[1642066897099,2.883,151.91,151.84,26.66008745]
[1642066897299,2.883,151.91,151.84,24.788]
[1642066898700,2.883,151.91,151.84,34.6645]
[1642066899200,0.25,151.91,151.84,34.6645]
[1642066899402,0.25,151.91,151.84,9.8765]
[1642066899600,33.64824693,151.92,151.84,9.8765]
[1642066901403,33.64824693,151.92,151.83,24.55628745]
[1642066901803,33.71824693,151.92,151.83,24.55628745]
[1642066902006,41.48724693,151.92,151.83,24.55628745]
[1642066902229,41.48724693,151.92,151.83,1.87208745]
[1642066902433,41.48724693,151.92,151.82,1.87208745]
[1642066903032,0.07,151.9,151.82,1.87208745]
[1642066903231,2.634,151.89,151.82,1.87208745]
[1642066903438,23.15903742,151.88,151.81,26.70778745]
[1642066903632,47.52271941,151.88,151.81,26.70778745]
[1642066903832,47.77271941,151.88,151.81,26.70778745]
[1642066904433,2.634,151.87,151.81,24.8357]
[1642066904833,25.5294,151.87,151.79,11.37208745]
[1642066905434,25.5294,151.87,151.79,21.25178745]
[1642066905837,25.5294,151.87,151.79,1.87208745]
[1642066906136,32.6944,151.87,151.79,1.87208745]
[1642066906337,32.7644,151.87,151.79,1.87208745]
[1642066906535,34.43698303,151.87,151.79,1.87208745]
[1642066906736,75.4,151.86,151.79,1.87208745]
[1642066906937,2.634,151.85,151.79,1.87208745]
[1642066907146,4.30658303,151.85,151.78,1.87208745]
[1642066907342,4.55658303,151.85,151.78,1.87208745]
[1642066907536,2.884,151.85,151.78,1.87208745]
[1642066907937,0.25,151.85,151.78,1.87208745]
[1642066908237,2.634,151.84,151.78,1.87208745]
[1642066908638,0.25,151.84,151.77,28.3516411]
[1642066908837,2.634,151.83,151.77,28.3516411]
[1642066909038,2.884,151.83,151.77,28.3516411]
[1642066909438,2.634,151.86,151.77,28.3516411]
[1642066910238,12.5169,151.86,151.77,28.3516411]
[1642066910639,12.7669,151.86,151.77,28.3516411]
[1642066911439,65.9,151.85,151.77,28.3516411]
[1642066911640,12.5182,151.84,151.77,28.3516411]
[1642066912040,12.7682,151.84,151.77,28.3516411]
[1642066912242,2.884,151.84,151.77,28.3516411]
[1642066912640,0.25,151.84,151.77,28.3516411]
[1642066912840,2.634,151.83,151.77,28.3516411]
[1642066913140,31.19348675,151.82,151.77,28.3516411]
[1642066913375,37.96248675,151.82,151.77,28.3516411]
[1642066913539,38.21248675,151.82,151.77,28.3516411]
[1642066914440,2.634,151.81,151.77,28.3516411]
[1642066914943,2.884,151.81,151.77,28.3516411]
[1642066916745,12.7698,151.81,151.77,28.3516411]
[1642066916940,2.634,151.81,151.77,28.3516411]
[1642066918344,2.884,151.81,151.77,28.3516411]
[1642066919442,12.7699,151.81,151.77,28.3516411]
[1642066921147,14.44248303,151.81,151.77,28.3516411]
[1642066923047,65.9,151.8,151.77,28.3516411]
[1642066923249,2.634,151.79,151.77,28.3516411]
[1642066923646,2.884,151.79,151.77,28.3516411]
[1642066924147,0.25,151.79,151.77,28.3516411]
[1642066924349,2.634,151.78,151.77,28.3516411]
[1642066924546,25.50716613,151.78,151.77,28.3516411]
[1642066924946,22.87316613,151.78,151.77,28.3516411]
[1642066925847,25.50716613,151.78,151.77,28.3516411]
[1642066926849,22.87316613,151.78,151.77,28.3516411]
[1642066928053,25.50716613,151.78,151.77,28.3516411]
[1642066936685,22.87316613,151.78,151.77,28.3516411]
[1642066939189,25.50716613,151.78,151.77,28.3516411]
[1642066941590,22.87316613,151.78,151.77,28.3516411]
[1642066942591,25.50716613,151.78,151.77,28.3516411]
[1642066943897,25.50716613,151.78,151.71,1.87208745]
[1642066944094,26.0223,151.77,151.71,1.87208745]
[1642066944593,27.94488303,151.77,151.71,1.87208745]
[1642066945293,93.84488303,151.77,151.68,1.87208745]
[1642066945493,30.61404553,151.74,151.68,1.87208745]
[1642066945694,2.636,151.73,151.68,1.87208745]
[1642066945895,30.79404553,151.74,151.68,1.87208745]
[1642066946796,2.636,151.73,151.65,24.84818745]
[1642066946995,25.9457,151.73,151.65,24.84818745]
[1642066947797,25.9457,151.73,151.65,22.9761]
[1642066949101,0.25,151.73,151.65,22.9761]
[1642066949498,30.79404553,151.74,151.65,22.9761]
[1642066950199,30.79404553,151.74,151.65,32.8648]
[1642066951098,30.79404553,151.74,151.65,22.9761]
[1642066951301,2.636,151.73,151.65,22.9761]
[1642066951604,2.886,151.73,151.65,22.9761]
[1642066952702,2.906,151.73,151.65,22.9761]
[1642066953303,2.906,151.73,151.65,32.8649]
[1642066953904,2.906,151.73,151.65,22.9761]
[1642066954502,2.906,151.73,151.65,32.8648]
[1642066954903,0.27,151.73,151.65,32.8648]
[1642066955109,0.02,151.73,151.65,32.8648]
[1642066956907,0.02,151.73,151.65,22.9761]
[1642066958109,23.0339,151.73,151.65,22.9761]
[1642066958308,23.2839,151.73,151.65,22.9761]
[1642066962440,33.175,151.73,151.65,22.9761]
[1642066965643,2.706,151.74,151.65,22.9761]
[1642066965644,19.3351,151.77,151.65,22.9761]
[1642066966544,21.00768303,151.77,151.65,22.9761]
[1642066967544,21.25768303,151.77,151.65,22.9761]
[1642066968445,87.15768303,151.77,151.65,22.9761]
[1642066970948,21.25768303,151.77,151.65,22.9761]
[1642066974449,21.25768303,151.77,151.65,24.84818745]
[1642066974652,23.00889682,151.77,151.65,24.84818745]
[1642066975853,140.37089682,151.77,151.65,24.84818745]
[1642066976253,146.70943679,151.77,151.65,24.84818745]
[1642066976455,146.70943679,151.77,151.65,1.87208745]
[1642066976754,153.5861004,151.77,151.65,1.87208745]
[1642066977360,153.5861004,151.77,151.62,75.28988745]
[1642066977361,151.83488661,151.77,151.62,75.28988745]
[1642066977557,151.83488661,151.77,151.63,24.2362]
[1642066977755,144.958223,151.77,151.63,24.2362]
[1642066979057,138.36968303,151.77,151.63,24.2362]
[1642066979455,136.6971,151.77,151.63,24.2362]
[1642066980057,138.36968303,151.77,151.63,24.2362]
[1642066980259,138.36968303,151.77,151.63,48.4642]
[1642066981060,138.36968303,151.77,151.63,51.1002]
[1642066981260,138.36968303,151.77,151.63,60.9903]
[1642066981563,86.90768303,151.77,151.63,60.9903]
[1642066981760,87.15768303,151.77,151.63,60.9903]
[1642066981964,21.25768303,151.77,151.63,60.9903]
[1642066983162,31.14678303,151.77,151.63,60.9903]
[1642066984362,29.4742,151.77,151.63,60.9903]
[1642066984564,29.2242,151.77,151.63,60.9903]
[1642066984765,19.3891,151.77,151.63,60.9903]
[1642066984965,19.3891,151.77,151.63,61.2403]
[1642066985164,19.3891,151.77,151.63,60.9903]
[1642066985563,19.3891,151.77,151.63,61.2403]
[1642066986867,19.3891,151.77,151.63,61.3103]
[1642066987066,19.6391,151.77,151.63,61.3103]
[1642066987270,19.1391,151.77,151.63,61.3103]
[1642066987867,9.25,151.77,151.66,9.8879]
[1642066988167,9.25,151.77,151.67,23.9863]
[1642066989271,0.25,151.77,151.67,33.8736]
[1642066989468,10.1381,151.78,151.67,33.8736]
[1642066991570,0.25,151.78,151.67,33.8736]
[1642066991770,0.25,151.78,151.68,85.3035]
[1642066991973,98.2075,151.8,151.68,85.3035]
[1642066992676,2.636,151.79,151.68,85.3035]
[1642066992873,2.636,151.79,151.69,23.8478]
[1642066993072,2.886,151.79,151.69,23.8478]
[1642066993476,12.7734,151.79,151.69,23.8478]
[1642066997212,12.5234,151.79,151.69,23.8478]
[1642066997611,2.636,151.79,151.69,33.7339]
[1642066998712,2.636,151.79,151.69,41.7689]
[1642066998713,2.886,151.79,151.69,41.7689]
[1642066998912,9.5,151.82,151.69,51.5189]
[1642066998913,2.636,151.82,151.69,51.5189]
[1642066999411,2.634,151.83,151.69,51.5189]
[1642066999611,2.634,151.84,151.69,51.5189]
[1642066999813,2.634,151.84,151.69,75.4107]
[1642067000015,2.634,151.84,151.69,76.74461868]
[1642067001214,2.634,151.84,151.69,82.74461868]
[1642067002413,2.634,151.84,151.7,2.634]
[1642067002614,2.634,151.84,151.74,9.8828]
[1642067002914,2.634,151.84,151.75,23.2666]
[1642067003217,2.884,151.84,151.75,23.2666]
[1642067003814,2.634,151.84,151.75,33.1488]
[1642067004015,2.634,151.84,151.75,23.2666]
[1642067004416,12.134,151.84,151.75,23.2666]
[1642067004615,9.5,151.84,151.75,23.2666]
[1642067004816,2.634,151.83,151.75,23.2666]
[1642067005017,2.884,151.83,151.75,23.2666]
[1642067005617,12.7689,151.83,151.75,23.2666]
[1642067008219,24.58799583,151.82,151.75,23.2666]